[Event "Titled Tuesday Blitz April 19 Late 2022"]
[White "Zlatin, Alexander"]
[Black "Sernecki, Franciszek"]
[WhiteFideId "2810549"]
[BlackFideId "1169297"]
[WhiteElo "2228"]
[BlackElo "2165"]
[Result "0-1"]
[Round "10"]
[TimeControl "180+1"]
[Date "2022.04.19"]
[WhiteClock "0:01:52"]
[BlackClock "0:02:14"]

1. c4 {[%clk 0:02:31]}  Nf6 {[%clk 0:02:58]} 2. g3 {[%clk 0:02:29]}  e6 {[%clk 0:02:58]} 3. Bg2 {[%clk 0:02:29]}  d5 {[%clk 0:02:59]} 4. Nf3 {[%clk 0:02:28]}  dxc4 {[%clk 0:02:59]} 5. O-O {[%clk 0:02:27]}  c5 {[%clk 0:02:56]} 6. Qa4+ {[%clk 0:02:28]}  Bd7 {[%clk 0:02:57]} 7. Qxc4 {[%clk 0:02:28]}  Nc6 {[%clk 0:02:57]} 8. Nc3 {[%clk 0:02:28]}  Be7 {[%clk 0:02:56]} 9. d3 {[%clk 0:02:29]}  O-O {[%clk 0:02:56]} 10. Bf4 {[%clk 0:02:30]}  Rc8 {[%clk 0:02:56]} 11. Rac1 {[%clk 0:02:29]}  Na5 {[%clk 0:02:47]} 12. Ne5 {[%clk 0:02:08]}  Nxc4 {[%clk 0:02:46]} 13. dxc4 {[%clk 0:02:09]}  Bc6 {[%clk 0:02:39]} 14. Bh3 {[%clk 0:02:08]}  Qb6 {[%clk 0:02:21]} 15. b3 {[%clk 0:01:52]}  Rfd8 {[%clk 0:02:14]} 0-1


[Site "https://www.chess.com"]

[Event "Titled Tuesday Blitz April 19 Late 2022"]
[White "Aigner, Michael"]
[Black "Derraugh, Geordie"]
[WhiteFideId "2017288"]
[BlackFideId "2603950"]
[WhiteElo "2401"]
[BlackElo "2116"]
[Result "0-1"]
[Round "11"]
[TimeControl "180+1"]
[Date "2022.04.19"]
[WhiteClock "0:00:34"]
[BlackClock "0:00:58"]

1. e4 {[%clk 0:03:00]}  c5 {[%clk 0:02:58]} 2. Nc3 {[%clk 0:03:00]}  g6 {[%clk 0:02:57]} 3. g3 {[%clk 0:02:59]}  Bg7 {[%clk 0:02:58]} 4. Bg2 {[%clk 0:02:59]}  Nc6 {[%clk 0:02:58]} 5. d3 {[%clk 0:02:59]}  e6 {[%clk 0:02:58]} 6. f4 {[%clk 0:03:00]}  Nge7 {[%clk 0:02:58]} 7. Nf3 {[%clk 0:02:59]}  d5 {[%clk 0:02:59]} 8. e5 {[%clk 0:02:54]}  O-O {[%clk 0:02:57]} 9. O-O {[%clk 0:02:53]}  h5 {[%clk 0:02:56]} 10. Bd2 {[%clk 0:02:47]}  Nf5 {[%clk 0:02:56]} 11. Ne2 {[%clk 0:02:41]}  Qb6 {[%clk 0:02:55]} 12. Rb1 {[%clk 0:02:36]}  c4+ {[%clk 0:02:54]} 13. Kh1 {[%clk 0:02:37]}  cxd3 {[%clk 0:02:46]} 14. cxd3 {[%clk 0:02:36]}  Ne3 {[%clk 0:02:46]} 15. Bxe3 {[%clk 0:02:36]}  Qxe3 {[%clk 0:02:47]} 16. Re1 {[%clk 0:02:30]}  Qb6 {[%clk 0:02:41]} 17. b3 {[%clk 0:02:16]}  Bd7 {[%clk 0:02:40]} 18. Qd2 {[%clk 0:02:12]}  Rfc8 {[%clk 0:02:39]} 19. d4 {[%clk 0:02:10]}  Bf8 {[%clk 0:02:39]} 20. Rec1 {[%clk 0:02:09]}  Ba3 {[%clk 0:02:39]} 21. Rc2 {[%clk 0:02:09]}  a5 {[%clk 0:02:39]} 22. h3 {[%clk 0:02:03]}  Nb4 {[%clk 0:02:39]} 23. Rxc8+ {[%clk 0:01:59]}  Rxc8 {[%clk 0:02:40]} 24. g4 {[%clk 0:01:59]}  Rc2 {[%clk 0:02:38]} 25. Qe3 {[%clk 0:01:59]}  hxg4 {[%clk 0:02:36]} 26. hxg4 {[%clk 0:01:59]}  Rxa2 {[%clk 0:02:34]} 27. f5 {[%clk 0:01:58]}  exf5 {[%clk 0:02:33]} 28. gxf5 {[%clk 0:01:57]}  Bxf5 {[%clk 0:02:29]} 29. Rg1 {[%clk 0:01:56]}  Nc6 {[%clk 0:01:58]} 30. Ng3 {[%clk 0:01:52]}  Bg4 {[%clk 0:01:51]} 31. Qg5 {[%clk 0:01:03]}  Rxg2 {[%clk 0:01:18]} 32. Kxg2 {[%clk 0:00:47]}  Bxf3+ {[%clk 0:01:17]} 33. Kxf3 {[%clk 0:00:47]}  Qxb3+ {[%clk 0:01:11]} 34. Kg2 {[%clk 0:00:45]}  Nxd4 {[%clk 0:01:07]} 35. Qd8+ {[%clk 0:00:45]}  Bf8 {[%clk 0:01:06]} 36. Qh4 {[%clk 0:00:40]}  Qf3+ {[%clk 0:01:03]} 37. Kh2 {[%clk 0:00:37]}  Qf2+ {[%clk 0:00:57]} 38. Rg2 {[%clk 0:00:36]}  Nf3+ {[%clk 0:00:57]} 39. Kh3 {[%clk 0:00:34]}  Qxg2+ {[%clk 0:00:58]} 0-1


[Site "https://www.chess.com"]

[Event "Titled Tuesday Blitz April 19 Late 2022"]
[White "Antonova, Nadezhda"]
[Black "Karwowski, Kacper"]
[WhiteFideId "14700182"]
[BlackFideId "1126032"]
[WhiteElo "1789"]
[BlackElo "2261"]
[Result "0-1"]
[Round "11"]
[TimeControl "180+1"]
[Date "2022.04.19"]
[WhiteClock "0:00:02"]
[BlackClock "0:00:03"]

1. Nf3 {[%clk 0:02:59]}  Nf6 {[%clk 0:02:59]} 2. b3 {[%clk 0:03:00]}  d5 {[%clk 0:02:59]} 3. Bb2 {[%clk 0:03:00]}  c5 {[%clk 0:02:57]} 4. e3 {[%clk 0:03:00]}  Nc6 {[%clk 0:02:57]} 5. Bb5 {[%clk 0:03:00]}  Bd7 {[%clk 0:02:51]} 6. O-O {[%clk 0:03:00]}  e6 {[%clk 0:02:49]} 7. Bxc6 {[%clk 0:02:59]}  Bxc6 {[%clk 0:02:49]} 8. Ne5 {[%clk 0:02:59]}  Qc7 {[%clk 0:02:48]} 9. f4 {[%clk 0:02:58]}  Be7 {[%clk 0:02:41]} 10. d3 {[%clk 0:02:56]}  b5 {[%clk 0:02:40]} 11. Nd2 {[%clk 0:02:55]}  Bb7 {[%clk 0:02:37]} 12. Rf3 {[%clk 0:02:54]}  g6 {[%clk 0:02:35]} 13. Ng4 {[%clk 0:02:43]}  Nxg4 {[%clk 0:02:23]} 14. Bxh8 {[%clk 0:02:42]}  d4 {[%clk 0:02:23]} 15. e4 {[%clk 0:02:41]}  O-O-O {[%clk 0:02:12]} 16. Bg7 {[%clk 0:02:21]}  Ne3 {[%clk 0:02:06]} 17. Qc1 {[%clk 0:02:18]}  Bd6 {[%clk 0:01:57]} 18. Be5 {[%clk 0:02:15]}  f5 {[%clk 0:01:48]} 19. Bxd6 {[%clk 0:01:47]}  Qxd6 {[%clk 0:01:48]} 20. Rf2 {[%clk 0:01:46]}  Kb8 {[%clk 0:01:34]} 21. a4 {[%clk 0:01:42]}  b4 {[%clk 0:01:16]} 22. Nc4 {[%clk 0:01:26]}  Nxc4 {[%clk 0:01:15]} 23. bxc4 {[%clk 0:01:26]}  fxe4 {[%clk 0:01:15]} 24. dxe4 {[%clk 0:01:26]}  Bxe4 {[%clk 0:01:14]} 25. a5 {[%clk 0:01:23]}  a6 {[%clk 0:00:35]} 26. Qe1 {[%clk 0:01:15]}  Bf5 {[%clk 0:00:33]} 27. Rd1 {[%clk 0:01:03]}  h5 {[%clk 0:00:31]} 28. h3 {[%clk 0:00:59]}  Kb7 {[%clk 0:00:28]} 29. Qe2 {[%clk 0:00:54]}  Qc7 {[%clk 0:00:27]} 30. Rff1 {[%clk 0:00:28]}  h4 {[%clk 0:00:22]} 31. Rde1 {[%clk 0:00:12]}  Qxa5 {[%clk 0:00:19]} 32. Ra1 {[%clk 0:00:11]}  Qc7 {[%clk 0:00:16]} 33. Qf3+ {[%clk 0:00:09]}  Ka7 {[%clk 0:00:09]} 34. Qb3 {[%clk 0:00:09]}  Rd6 {[%clk 0:00:09]} 35. Qa4 {[%clk 0:00:07]}  Qb6 {[%clk 0:00:06]} 36. Rf2 {[%clk 0:00:05]}  Be4 {[%clk 0:00:06]} 37. Qe8 {[%clk 0:00:04]}  Qb7 {[%clk 0:00:05]} 38. Qf8 {[%clk 0:00:03]}  d3 {[%clk 0:00:05]} 39. Qxd6 {[%clk 0:00:02]}  dxc2 {[%clk 0:00:03]} 0-1


[Site "https://www.chess.com"]

[Event "Titled Tuesday Blitz April 19 Late 2022"]
[White "Araujo Filho, Luiz Antonio Coel"]
[Black "Omariev, Maksim"]
[WhiteFideId "2130661"]
[BlackFideId "4193423"]
[WhiteElo "2311"]
[BlackElo "2472"]
[Result "0-1"]
[Round "11"]
[TimeControl "180+1"]
[Date "2022.04.19"]
[WhiteClock "0:00:31"]
[BlackClock "0:01:48"]

1. d4 {[%clk 0:02:31]}  h5 {[%clk 0:03:00]} 2. Nf3 {[%clk 0:02:30]}  h4 {[%clk 0:03:01]} 3. e3 {[%clk 0:02:30]}  h3 {[%clk 0:03:02]} 4. gxh3 {[%clk 0:02:30]}  c6 {[%clk 0:03:03]} 5. Bg2 {[%clk 0:02:31]}  d5 {[%clk 0:03:04]} 6. Nbd2 {[%clk 0:02:30]}  Nf6 {[%clk 0:03:03]} 7. h4 {[%clk 0:02:29]}  Bg4 {[%clk 0:03:02]} 8. c3 {[%clk 0:02:28]}  e6 {[%clk 0:03:03]} 9. Qb3 {[%clk 0:02:28]}  b6 {[%clk 0:02:58]} 10. Ne5 {[%clk 0:02:27]}  Bf5 {[%clk 0:02:58]} 11. Ndf3 {[%clk 0:02:26]}  Bd6 {[%clk 0:02:56]} 12. Bd2 {[%clk 0:02:24]}  Nfd7 {[%clk 0:02:56]} 13. O-O-O {[%clk 0:02:21]}  Nxe5 {[%clk 0:02:48]} 14. dxe5 {[%clk 0:02:20]}  Be7 {[%clk 0:02:47]} 15. Rhg1 {[%clk 0:02:16]}  Qc7 {[%clk 0:02:47]} 16. Bh1 {[%clk 0:01:59]}  g6 {[%clk 0:02:35]} 17. Nd4 {[%clk 0:01:46]}  Qxe5 {[%clk 0:02:31]} 18. Nxf5 {[%clk 0:01:39]}  gxf5 {[%clk 0:02:32]} 19. h5 {[%clk 0:01:31]}  Rxh5 {[%clk 0:02:17]} 20. Rg8+ {[%clk 0:01:30]}  Bf8 {[%clk 0:02:17]} 21. Rdg1 {[%clk 0:01:23]}  Nd7 {[%clk 0:02:17]} 22. f4 {[%clk 0:01:02]}  Qd6 {[%clk 0:02:12]} 23. Qd1 {[%clk 0:00:51]}  Rxh2 {[%clk 0:02:10]} 24. Qf3 {[%clk 0:00:49]}  O-O-O {[%clk 0:02:07]} 25. Qg3 {[%clk 0:00:42]}  Rh6 {[%clk 0:02:07]} 26. Qg5 {[%clk 0:00:39]}  Nf6 {[%clk 0:01:50]} 27. Bf3 {[%clk 0:00:31]}  Nxg8 {[%clk 0:01:48]} 0-1


[Site "https://www.chess.com"]

[Event "Titled Tuesday Blitz April 19 Late 2022"]
[White "Arnold, Ken"]
[Black "D`Arruda, Ricardo D."]
[WhiteFideId "2056836"]
[BlackFideId "100692"]
[WhiteElo "2149"]
[BlackElo "2446"]
[Result "1-0"]
[Round "11"]
[TimeControl "180+1"]
[Date "2022.04.19"]
[WhiteClock "0:00:05"]
[BlackClock "0:00:19"]

1. d4 {[%clk 0:03:00]}  Nf6 {[%clk 0:02:56]} 2. c4 {[%clk 0:03:01]}  e5 {[%clk 0:02:51]} 3. d5 {[%clk 0:02:59]}  e4 {[%clk 0:02:51]} 4. Nc3 {[%clk 0:02:58]}  d6 {[%clk 0:02:50]} 5. Bg5 {[%clk 0:02:58]}  Bf5 {[%clk 0:02:50]} 6. e3 {[%clk 0:02:57]}  Nbd7 {[%clk 0:02:49]} 7. Nge2 {[%clk 0:02:57]}  h6 {[%clk 0:02:50]} 8. Nd4 {[%clk 0:02:54]}  Bh7 {[%clk 0:02:48]} 9. Bxf6 {[%clk 0:02:39]}  Nxf6 {[%clk 0:02:49]} 10. Qb3 {[%clk 0:02:37]}  Qc8 {[%clk 0:02:39]} 11. Rc1 {[%clk 0:02:17]}  Nd7 {[%clk 0:02:32]} 12. Qc2 {[%clk 0:02:10]}  Nc5 {[%clk 0:02:27]} 13. b4 {[%clk 0:02:08]}  Nd3+ {[%clk 0:02:27]} 14. Bxd3 {[%clk 0:02:08]}  exd3 {[%clk 0:02:28]} 15. Qd2 {[%clk 0:02:06]}  Be7 {[%clk 0:02:28]} 16. O-O {[%clk 0:01:58]}  O-O {[%clk 0:02:26]} 17. e4 {[%clk 0:01:54]}  a5 {[%clk 0:02:05]} 18. b5 {[%clk 0:01:52]}  Bf6 {[%clk 0:01:51]} 19. Qxd3 {[%clk 0:01:50]}  Re8 {[%clk 0:01:52]} 20. Rce1 {[%clk 0:01:46]}  Qg4 {[%clk 0:01:44]} 21. h3 {[%clk 0:01:43]}  Qf4 {[%clk 0:01:42]} 22. Re3 {[%clk 0:01:09]}  Re7 {[%clk 0:01:39]} 23. Nde2 {[%clk 0:01:05]}  Qh4 {[%clk 0:01:31]} 24. f4 {[%clk 0:00:40]}  Rae8 {[%clk 0:01:28]} 25. Kh2 {[%clk 0:00:36]}  g5 {[%clk 0:01:08]} 26. g3 {[%clk 0:00:31]}  Qh5 {[%clk 0:01:07]} 27. f5 {[%clk 0:00:24]}  Be5 {[%clk 0:00:48]} 28. Kg2 {[%clk 0:00:23]}  g4 {[%clk 0:00:45]} 29. h4 {[%clk 0:00:18]}  f6 {[%clk 0:00:33]} 30. Nf4 {[%clk 0:00:09]}  Bxf4 {[%clk 0:00:33]} 31. Rxf4 {[%clk 0:00:08]}  Kh8 {[%clk 0:00:32]} 32. Re2 {[%clk 0:00:05]}  b6 {[%clk 0:00:31]} 33. Ref2 {[%clk 0:00:05]}  Bg8 {[%clk 0:00:26]} 34. Ne2 {[%clk 0:00:04]}  Rg7 {[%clk 0:00:26]} 35. Nd4 {[%clk 0:00:04]}  Bf7 {[%clk 0:00:26]} 36. Ne6 {[%clk 0:00:05]}  Bxe6 {[%clk 0:00:23]} 37. fxe6 {[%clk 0:00:06]}  Qe5 {[%clk 0:00:20]} 38. Rxf6 {[%clk 0:00:05]}  Ree7 {[%clk 0:00:20]} 39. Rf8+ {[%clk 0:00:04]}  Kh7 {[%clk 0:00:20]} 40. R8f5 {[%clk 0:00:05]}  Qa1 {[%clk 0:00:19]} 41. e5 {[%clk 0:00:05]} 1-0


[Site "https://www.chess.com"]

[Event "Titled Tuesday Blitz April 19 Late 2022"]
[White "Bibasa, Bob"]
[Black "Jarocka, Liwia"]
[WhiteFideId "10000240"]
[BlackFideId "21807558"]
[WhiteElo "2449"]
[BlackElo "2358"]
[Result "1-0"]
[Round "11"]
[TimeControl "180+1"]
[Date "2022.04.19"]
[WhiteClock "0:02:51"]
[BlackClock "0:02:00"]

1. e4 {[%clk 0:03:00]}  c5 {[%clk 0:02:56]} 2. Nf3 {[%clk 0:03:00]}  d6 {[%clk 0:02:55]} 3. d4 {[%clk 0:03:01]}  cxd4 {[%clk 0:02:56]} 4. Nxd4 {[%clk 0:03:01]}  Nf6 {[%clk 0:02:54]} 5. f3 {[%clk 0:03:02]}  e5 {[%clk 0:02:48]} 6. Nb3 {[%clk 0:03:01]}  d5 {[%clk 0:02:48]} 7. Bg5 {[%clk 0:03:01]}  dxe4 {[%clk 0:02:46]} 8. Qxd8+ {[%clk 0:03:00]}  Kxd8 {[%clk 0:02:47]} 9. Nc3 {[%clk 0:03:00]}  exf3 {[%clk 0:02:45]} 10. O-O-O+ {[%clk 0:03:00]}  Bd7 {[%clk 0:02:42]} 11. gxf3 {[%clk 0:02:59]}  Be7 {[%clk 0:02:39]} 12. Bh3 {[%clk 0:02:57]}  a6 {[%clk 0:02:15]} 13. Bxf6 {[%clk 0:02:55]}  Bxf6 {[%clk 0:02:15]} 14. Nc5 {[%clk 0:02:55]}  Kc7 {[%clk 0:02:05]} 15. Nxd7 {[%clk 0:02:54]}  Rd8 {[%clk 0:02:04]} 16. Nxf6 {[%clk 0:02:52]}  gxf6 {[%clk 0:02:00]} 17. Rxd8 {[%clk 0:02:52]}  Kxd8 {[%clk 0:02:01]} 18. Rd1+ {[%clk 0:02:52]}  Kc7 {[%clk 0:02:01]} 19. Nd5+ {[%clk 0:02:52]}  Kd6 {[%clk 0:02:00]} 20. Nb6+ {[%clk 0:02:51]} 1-0


[Site "https://www.chess.com"]

[Event "Titled Tuesday Blitz April 19 Late 2022"]
[White "Bilan, Danila"]
[Black "Bowden, Karl"]
[WhiteFideId "24161918"]
[BlackFideId "400548"]
[WhiteElo "2164"]
[BlackElo "2349"]
[Result "1-0"]
[Round "11"]
[TimeControl "180+1"]
[Date "2022.04.19"]
[WhiteClock "0:00:12"]
[BlackClock "0:00:02"]

1. d4 {[%clk 0:03:00]}  Nf6 {[%clk 0:02:59]} 2. Nf3 {[%clk 0:03:01]}  g6 {[%clk 0:02:58]} 3. Bg5 {[%clk 0:03:01]}  Bg7 {[%clk 0:02:58]} 4. c3 {[%clk 0:03:01]}  O-O {[%clk 0:02:57]} 5. Nbd2 {[%clk 0:03:01]}  d5 {[%clk 0:02:52]} 6. e3 {[%clk 0:03:01]}  Bg4 {[%clk 0:02:50]} 7. Qc2 {[%clk 0:03:00]}  Bxf3 {[%clk 0:02:49]} 8. Nxf3 {[%clk 0:02:57]}  Ne4 {[%clk 0:02:49]} 9. Bh4 {[%clk 0:02:57]}  c5 {[%clk 0:02:42]} 10. Bd3 {[%clk 0:02:56]}  cxd4 {[%clk 0:02:41]} 11. exd4 {[%clk 0:02:50]}  Nf6 {[%clk 0:02:29]} 12. O-O {[%clk 0:02:47]}  Nc6 {[%clk 0:02:29]} 13. Rfe1 {[%clk 0:02:41]}  Rc8 {[%clk 0:02:28]} 14. Qb3 {[%clk 0:02:31]}  Na5 {[%clk 0:02:22]} 15. Qa3 {[%clk 0:02:23]}  e6 {[%clk 0:02:04]} 16. Ne5 {[%clk 0:02:14]}  Qc7 {[%clk 0:01:32]} 17. Rac1 {[%clk 0:02:06]}  a6 {[%clk 0:01:03]} 18. h3 {[%clk 0:01:38]}  Rfe8 {[%clk 0:00:50]} 19. Bg3 {[%clk 0:01:25]}  Qb6 {[%clk 0:00:48]} 20. Bf4 {[%clk 0:01:18]}  Nc4 {[%clk 0:00:43]} 21. Bxc4 {[%clk 0:01:03]}  dxc4 {[%clk 0:00:43]} 22. Qa4 {[%clk 0:00:54]}  Qb5 {[%clk 0:00:42]} 23. Qxb5 {[%clk 0:00:52]}  axb5 {[%clk 0:00:40]} 24. a3 {[%clk 0:00:53]}  Nd5 {[%clk 0:00:40]} 25. Bg3 {[%clk 0:00:50]}  Bh6 {[%clk 0:00:38]} 26. Rcd1 {[%clk 0:00:48]}  Bg7 {[%clk 0:00:31]} 27. Ng4 {[%clk 0:00:48]}  h5 {[%clk 0:00:30]} 28. Ne3 {[%clk 0:00:46]}  Red8 {[%clk 0:00:26]} 29. Nc2 {[%clk 0:00:43]}  Rd7 {[%clk 0:00:22]} 30. Ra1 {[%clk 0:00:39]}  Bf8 {[%clk 0:00:20]} 31. f3 {[%clk 0:00:34]}  Ra8 {[%clk 0:00:19]} 32. Bf2 {[%clk 0:00:22]}  Bd6 {[%clk 0:00:19]} 33. Ne3 {[%clk 0:00:20]}  Bf4 {[%clk 0:00:16]} 34. Nxd5 {[%clk 0:00:20]}  Rxd5 {[%clk 0:00:16]} 35. Re4 {[%clk 0:00:20]}  Bc7 {[%clk 0:00:14]} 36. Rae1 {[%clk 0:00:20]}  Rad8 {[%clk 0:00:12]} 37. g4 {[%clk 0:00:20]}  hxg4 {[%clk 0:00:11]} 38. hxg4 {[%clk 0:00:21]}  Kg7 {[%clk 0:00:10]} 39. Kg2 {[%clk 0:00:21]}  g5 {[%clk 0:00:09]} 40. Bg3 {[%clk 0:00:21]}  Bxg3 {[%clk 0:00:08]} 41. Kxg3 {[%clk 0:00:22]}  Rh8 {[%clk 0:00:08]} 42. Re5 {[%clk 0:00:23]}  Rhd8 {[%clk 0:00:07]} 43. f4 {[%clk 0:00:22]}  gxf4+ {[%clk 0:00:07]} 44. Kxf4 {[%clk 0:00:23]}  R8d6 {[%clk 0:00:05]} 45. Rxd5 {[%clk 0:00:20]}  Rxd5 {[%clk 0:00:04]} 46. Re5 {[%clk 0:00:20]}  Rxe5 {[%clk 0:00:02]} 47. Kxe5 {[%clk 0:00:13]}  Kg6 {[%clk 0:00:02]} 48. Kd6 {[%clk 0:00:12]} 1-0


[Site "https://www.chess.com"]

[Event "Titled Tuesday Blitz April 19 Late 2022"]
[White "Blackman, Justin"]
[Black "Jimenez Fernandez, Rebeca"]
[WhiteFideId "11100516"]
[BlackFideId "32070934"]
[WhiteElo "2112"]
[BlackElo "1853"]
[Result "1-0"]
[Round "11"]
[TimeControl "180+1"]
[Date "2022.04.19"]
[WhiteClock "0:01:03"]
[BlackClock "0:00:03"]

1. e4 {[%clk 0:03:00]}  g6 {[%clk 0:02:58]} 2. Nc3 {[%clk 0:02:52]}  Bg7 {[%clk 0:02:59]} 3. Bc4 {[%clk 0:02:50]}  d6 {[%clk 0:02:57]} 4. d3 {[%clk 0:02:50]}  Nf6 {[%clk 0:02:56]} 5. h4 {[%clk 0:02:50]}  h5 {[%clk 0:02:55]} 6. Nh3 {[%clk 0:02:47]}  O-O {[%clk 0:02:55]} 7. Ng5 {[%clk 0:02:47]}  a6 {[%clk 0:02:54]} 8. Qe2 {[%clk 0:02:38]}  b5 {[%clk 0:02:54]} 9. Bb3 {[%clk 0:02:38]}  Bb7 {[%clk 0:02:54]} 10. f3 {[%clk 0:02:33]}  c5 {[%clk 0:02:50]} 11. g4 {[%clk 0:02:32]}  Nc6 {[%clk 0:02:46]} 12. Be3 {[%clk 0:02:30]}  Nd4 {[%clk 0:02:16]} 13. Bxd4 {[%clk 0:02:21]}  cxd4 {[%clk 0:02:17]} 14. Nd1 {[%clk 0:02:19]}  d5 {[%clk 0:02:15]} 15. e5 {[%clk 0:02:17]}  hxg4 {[%clk 0:01:54]} 16. exf6 {[%clk 0:02:16]}  exf6 {[%clk 0:01:55]} 17. Nf2 {[%clk 0:02:07]}  fxg5 {[%clk 0:01:49]} 18. O-O-O {[%clk 0:02:07]}  gxf3 {[%clk 0:01:40]} 19. Qxf3 {[%clk 0:02:06]}  gxh4 {[%clk 0:01:41]} 20. Rdg1 {[%clk 0:02:06]}  Qe7 {[%clk 0:01:24]} 21. Kb1 {[%clk 0:02:03]}  Rae8 {[%clk 0:01:22]} 22. Ng4 {[%clk 0:02:03]}  Qe2 {[%clk 0:01:18]} 23. Qh3 {[%clk 0:02:01]}  g5 {[%clk 0:01:08]} 24. Nh2 {[%clk 0:01:47]}  Bc8 {[%clk 0:01:03]} 25. Qg2 {[%clk 0:01:40]}  Qxg2 {[%clk 0:01:01]} 26. Rxg2 {[%clk 0:01:41]}  Re5 {[%clk 0:01:01]} 27. Nf3 {[%clk 0:01:40]}  Rf5 {[%clk 0:00:54]} 28. Nxg5 {[%clk 0:01:39]}  Re8 {[%clk 0:00:52]} 29. a3 {[%clk 0:01:38]}  f6 {[%clk 0:00:45]} 30. Nh3 {[%clk 0:01:37]}  Kf7 {[%clk 0:00:42]} 31. Rhg1 {[%clk 0:01:24]}  Bh6 {[%clk 0:00:40]} 32. Rg6 {[%clk 0:01:23]}  Bg5 {[%clk 0:00:34]} 33. Nxg5+ {[%clk 0:01:18]}  fxg5 {[%clk 0:00:35]} 34. R6xg5 {[%clk 0:01:15]}  Rxg5 {[%clk 0:00:34]} 35. Rxg5 {[%clk 0:01:16]}  Rh8 {[%clk 0:00:17]} 36. Bxd5+ {[%clk 0:01:15]}  Be6 {[%clk 0:00:17]} 37. Be4 {[%clk 0:01:10]}  h3 {[%clk 0:00:16]} 38. Rg1 {[%clk 0:01:11]}  h2 {[%clk 0:00:16]} 39. Rh1 {[%clk 0:01:12]}  Kf6 {[%clk 0:00:15]} 40. Kc1 {[%clk 0:01:12]}  Ke5 {[%clk 0:00:14]} 41. Kd2 {[%clk 0:01:12]}  Kf4 {[%clk 0:00:14]} 42. c3 {[%clk 0:01:08]}  dxc3+ {[%clk 0:00:13]} 43. Kxc3 {[%clk 0:01:08]}  Kg3 {[%clk 0:00:13]} 44. Kb4 {[%clk 0:01:08]}  Bg4 {[%clk 0:00:13]} 45. Ka5 {[%clk 0:01:07]}  Bf3 {[%clk 0:00:13]} 46. Bxf3 {[%clk 0:01:07]}  Kxf3 {[%clk 0:00:14]} 47. Kxa6 {[%clk 0:01:07]}  Rh5 {[%clk 0:00:12]} 48. b4 {[%clk 0:01:04]}  Kg2 {[%clk 0:00:12]} 49. Rxh2+ {[%clk 0:01:02]}  Kxh2 {[%clk 0:00:13]} 50. Ka5 {[%clk 0:01:00]}  Kg3 {[%clk 0:00:12]} 51. a4 {[%clk 0:01:01]}  bxa4+ {[%clk 0:00:12]} 52. Kxa4 {[%clk 0:01:01]}  Kf3 {[%clk 0:00:13]} 53. b5 {[%clk 0:01:02]}  Ke3 {[%clk 0:00:13]} 54. b6 {[%clk 0:01:02]}  Kxd3 {[%clk 0:00:11]} 55. b7 {[%clk 0:01:02]}  Rh8 {[%clk 0:00:10]} 56. Kb5 {[%clk 0:01:03]}  Kd4 {[%clk 0:00:10]} 57. Kc6 {[%clk 0:01:03]}  Ke5 {[%clk 0:00:08]} 58. Kc7 {[%clk 0:01:03]}  Rh7+ {[%clk 0:00:08]} 59. Kb6 {[%clk 0:01:03]}  Rh8 {[%clk 0:00:07]} 60. Ka7 {[%clk 0:01:03]}  Rh7 {[%clk 0:00:03]} 61. Ka8 {[%clk 0:01:03]} 1-0


[Site "https://www.chess.com"]

[Event "Titled Tuesday Blitz April 19 Late 2022"]
[White "Buchenau, Frank"]
[Black "Barria Zuniga, Daniel"]
[WhiteFideId "4604350"]
[BlackFideId "3400816"]
[WhiteElo "2467"]
[BlackElo "2558"]
[Result "1/2-1/2"]
[Round "11"]
[TimeControl "180+1"]
[Date "2022.04.19"]
[WhiteClock "0:00:33"]
[BlackClock "0:00:48"]

1. e4 {[%clk 0:03:00]}  c5 {[%clk 0:02:52]} 2. Nf3 {[%clk 0:03:01]}  e6 {[%clk 0:02:51]} 3. d4 {[%clk 0:03:00]}  cxd4 {[%clk 0:02:52]} 4. Nxd4 {[%clk 0:03:01]}  Nf6 {[%clk 0:02:52]} 5. Nc3 {[%clk 0:03:01]}  Bb4 {[%clk 0:02:52]} 6. e5 {[%clk 0:03:01]}  Nd5 {[%clk 0:02:52]} 7. Qg4 {[%clk 0:03:00]}  Kf8 {[%clk 0:02:52]} 8. Bd2 {[%clk 0:02:50]}  d6 {[%clk 0:02:52]} 9. Qg3 {[%clk 0:02:40]}  dxe5 {[%clk 0:02:46]} 10. Qxe5 {[%clk 0:02:37]}  Nd7 {[%clk 0:02:43]} 11. Qg3 {[%clk 0:02:31]}  N7f6 {[%clk 0:02:40]} 12. O-O-O {[%clk 0:02:04]}  Bxc3 {[%clk 0:02:25]} 13. Bxc3 {[%clk 0:02:03]}  Ne4 {[%clk 0:02:24]} 14. Bb4+ {[%clk 0:02:00]}  Nxb4 {[%clk 0:02:22]} 15. Nxe6+ {[%clk 0:01:59]}  Bxe6 {[%clk 0:02:21]} 16. Rxd8+ {[%clk 0:01:58]}  Rxd8 {[%clk 0:02:21]} 17. Qa3 {[%clk 0:01:52]}  Nxf2 {[%clk 0:01:57]} 18. Qxb4+ {[%clk 0:01:51]}  Kg8 {[%clk 0:01:57]} 19. Be2 {[%clk 0:01:42]}  Nxh1 {[%clk 0:01:54]} 20. Qe1 {[%clk 0:01:42]}  h5 {[%clk 0:01:49]} 21. Qxh1 {[%clk 0:01:42]}  h4 {[%clk 0:01:45]} 22. Qg1 {[%clk 0:01:37]}  b6 {[%clk 0:01:44]} 23. Qf2 {[%clk 0:01:33]}  Rh6 {[%clk 0:01:42]} 24. Bf3 {[%clk 0:01:29]}  h3 {[%clk 0:01:35]} 25. g3 {[%clk 0:01:26]}  Bd5 {[%clk 0:01:31]} 26. Bxd5 {[%clk 0:01:15]}  Rxd5 {[%clk 0:01:32]} 27. c4 {[%clk 0:01:13]}  Rc5 {[%clk 0:01:25]} 28. b3 {[%clk 0:01:10]}  Rf6 {[%clk 0:01:25]} 29. Qe3 {[%clk 0:00:52]}  Rcf5 {[%clk 0:01:21]} 30. Qe8+ {[%clk 0:00:44]}  Kh7 {[%clk 0:01:19]} 31. Qe4 {[%clk 0:00:44]}  Kh6 {[%clk 0:01:14]} 32. Qh4+ {[%clk 0:00:39]}  Rh5 {[%clk 0:01:10]} 33. Qd4 {[%clk 0:00:37]}  Rhf5 {[%clk 0:00:51]} 34. Qh4+ {[%clk 0:00:37]}  Rh5 {[%clk 0:00:49]} 35. Qd4 {[%clk 0:00:33]}  Rhf5 {[%clk 0:00:48]} 36. Qh4+ {[%clk 0:00:33]} 1/2-1/2


[Site "https://www.chess.com"]